[Event "Titled Tuesday Blitz August 31 2021"]
[White "Kim, Sergey"]
[Black "Vachier-Lagrave, Maxime"]
[WhiteFideId "13700570"]
[BlackFideId "623539"]
[WhiteElo "2473"]
[BlackElo "2850"]
[Result "0-1"]
[Round "03"]
[TimeControl "180+1"]
[Date "2021.08.31"]
[WhiteClock "0:00:18"]
[BlackClock "0:01:17"]

1. d4 {[%clk 0:03:00]}  d5 {[%clk 0:02:57]} 2. c4 {[%clk 0:03:00]}  e6 {[%clk 0:02:57]} 3. Nc3 {[%clk 0:03:00]}  Nf6 {[%clk 0:02:57]} 4. Nf3 {[%clk 0:03:00]}  Bb4 {[%clk 0:02:54]} 5. e3 {[%clk 0:02:59]}  O-O {[%clk 0:02:54]} 6. Bd3 {[%clk 0:02:58]}  dxc4 {[%clk 0:02:52]} 7. Bxc4 {[%clk 0:02:58]}  c5 {[%clk 0:02:52]} 8. O-O {[%clk 0:02:57]}  Nc6 {[%clk 0:02:51]} 9. a3 {[%clk 0:02:55]}  Bxc3 {[%clk 0:02:47]} 10. bxc3 {[%clk 0:02:56]}  Qc7 {[%clk 0:02:39]} 11. Qe2 {[%clk 0:02:55]}  e5 {[%clk 0:02:39]} 12. Bb2 {[%clk 0:02:53]}  Bg4 {[%clk 0:02:36]} 13. h3 {[%clk 0:02:52]}  Bh5 {[%clk 0:02:31]} 14. g4 {[%clk 0:02:34]}  Bg6 {[%clk 0:02:23]} 15. Rac1 {[%clk 0:02:27]}  Rad8 {[%clk 0:02:20]} 16. Rfd1 {[%clk 0:02:25]}  Rfe8 {[%clk 0:02:14]} 17. d5 {[%clk 0:02:17]}  Na5 {[%clk 0:02:12]} 18. Bb5 {[%clk 0:02:13]}  Re7 {[%clk 0:02:09]} 19. c4 {[%clk 0:02:13]}  Ne4 {[%clk 0:02:08]} 20. Ba4 {[%clk 0:02:04]}  f6 {[%clk 0:01:58]} 21. Nh4 {[%clk 0:01:53]}  Nd6 {[%clk 0:01:57]} 22. Nxg6 {[%clk 0:01:49]}  hxg6 {[%clk 0:01:58]} 23. Bc2 {[%clk 0:01:40]}  Kf7 {[%clk 0:01:54]} 24. Bb1 {[%clk 0:01:34]}  Rh8 {[%clk 0:01:53]} 25. Kg2 {[%clk 0:01:34]}  b6 {[%clk 0:01:48]} 26. Ba2 {[%clk 0:01:26]}  e4 {[%clk 0:01:45]} 27. Bc3 {[%clk 0:01:20]}  Nab7 {[%clk 0:01:46]} 28. Rh1 {[%clk 0:01:18]}  Rh4 {[%clk 0:01:44]} 29. Rcf1 {[%clk 0:01:03]}  Re8 {[%clk 0:01:38]} 30. f4 {[%clk 0:00:53]}  exf3+ {[%clk 0:01:39]} 31. Qxf3 {[%clk 0:00:51]}  Ne4 {[%clk 0:01:39]} 32. Be1 {[%clk 0:00:49]}  Rhh8 {[%clk 0:01:34]} 33. Bb1 {[%clk 0:00:45]}  Qe5 {[%clk 0:01:34]} 34. Qf4 {[%clk 0:00:41]}  Nbd6 {[%clk 0:01:32]} 35. Qxe5 {[%clk 0:00:28]}  Rxe5 {[%clk 0:01:33]} 36. Bd3 {[%clk 0:00:27]}  g5 {[%clk 0:01:22]} 37. Rf3 {[%clk 0:00:24]}  Rhe8 {[%clk 0:01:16]} 38. h4 {[%clk 0:00:22]}  gxh4 {[%clk 0:01:17]} 39. Rxh4 {[%clk 0:00:22]}  Ng5 {[%clk 0:01:17]} 40. Rg3 {[%clk 0:00:19]}  Rxe3 {[%clk 0:01:16]} 41. Rxe3 {[%clk 0:00:18]}  Rxe3 {[%clk 0:01:17]} 0-1


[Site "https://www.chess.com"]

[Event "Titled Tuesday Blitz August 31 2021"]
[White "Kowalczyk, Pawel"]
[Black "Chernomordik, Pavel"]
[WhiteFideId "1130641"]
[BlackFideId "2804530"]
[WhiteElo "2325"]
[BlackElo "2256"]
[Result "1-0"]
[Round "03"]
[TimeControl "180+1"]
[Date "2021.08.31"]
[WhiteClock "0:01:15"]
[BlackClock "0:00:59"]

1. a3 {[%clk 0:03:00]}  g6 {[%clk 0:03:00]} 2. d4 {[%clk 0:02:59]}  Bg7 {[%clk 0:03:00]} 3. c4 {[%clk 0:02:59]}  d6 {[%clk 0:03:00]} 4. Nf3 {[%clk 0:02:59]}  Nf6 {[%clk 0:02:59]} 5. g3 {[%clk 0:02:59]}  O-O {[%clk 0:02:58]} 6. Bg2 {[%clk 0:02:59]}  c6 {[%clk 0:02:58]} 7. O-O {[%clk 0:02:57]}  a6 {[%clk 0:02:56]} 8. Nc3 {[%clk 0:02:57]}  b5 {[%clk 0:02:55]} 9. cxb5 {[%clk 0:02:57]}  axb5 {[%clk 0:02:55]} 10. Bg5 {[%clk 0:02:56]}  b4 {[%clk 0:02:53]} 11. axb4 {[%clk 0:02:55]}  Rxa1 {[%clk 0:02:52]} 12. Qxa1 {[%clk 0:02:56]}  Qb6 {[%clk 0:02:51]} 13. Qa5 {[%clk 0:02:55]}  Qb7 {[%clk 0:02:48]} 14. b5 {[%clk 0:02:46]}  cxb5 {[%clk 0:02:41]} 15. Qxb5 {[%clk 0:02:46]}  Qa7 {[%clk 0:02:37]} 16. e4 {[%clk 0:02:40]}  Ba6 {[%clk 0:02:36]} 17. Ra1 {[%clk 0:02:37]}  Qb7 {[%clk 0:02:28]} 18. Qxb7 {[%clk 0:02:37]}  Bxb7 {[%clk 0:02:28]} 19. d5 {[%clk 0:02:28]}  Na6 {[%clk 0:02:25]} 20. Nd4 {[%clk 0:02:19]}  Nc5 {[%clk 0:02:14]} 21. Nc6 {[%clk 0:02:17]}  e6 {[%clk 0:02:05]} 22. Ra7 {[%clk 0:02:11]}  Bxc6 {[%clk 0:01:54]} 23. dxc6 {[%clk 0:02:03]}  Rc8 {[%clk 0:01:53]} 24. b4 {[%clk 0:02:00]}  Nd3 {[%clk 0:01:52]} 25. b5 {[%clk 0:01:59]}  Ne8 {[%clk 0:01:50]} 26. Na4 {[%clk 0:01:45]}  Bd4 {[%clk 0:01:42]} 27. Rd7 {[%clk 0:01:35]}  Nxf2 {[%clk 0:01:38]} 28. Kf1 {[%clk 0:01:35]}  Ng4 {[%clk 0:01:35]} 29. e5 {[%clk 0:01:30]}  Nxe5 {[%clk 0:01:34]} 30. Rd8 {[%clk 0:01:25]}  Rxd8 {[%clk 0:01:33]} 31. Bxd8 {[%clk 0:01:26]}  Nc4 {[%clk 0:01:29]} 32. c7 {[%clk 0:01:21]}  Nxc7 {[%clk 0:01:28]} 33. Bxc7 {[%clk 0:01:20]}  Ne3+ {[%clk 0:01:25]} 34. Ke2 {[%clk 0:01:15]}  Nxg2 {[%clk 0:01:24]} 35. b6 {[%clk 0:01:15]}  Ne3 {[%clk 0:01:21]} 36. b7 {[%clk 0:01:14]}  Ba7 {[%clk 0:01:20]} 37. Bb6 {[%clk 0:01:14]}  Bb8 {[%clk 0:01:17]} 38. Kxe3 {[%clk 0:01:14]}  Kf8 {[%clk 0:01:14]} 39. Nc3 {[%clk 0:01:15]}  Ke8 {[%clk 0:01:13]} 40. Nb5 {[%clk 0:01:13]}  Kd7 {[%clk 0:01:13]} 41. Ba7 {[%clk 0:01:14]}  Bxa7+ {[%clk 0:01:12]} 42. Nxa7 {[%clk 0:01:15]}  Kc7 {[%clk 0:01:12]} 43. Nb5+ {[%clk 0:01:14]}  Kxb7 {[%clk 0:01:12]} 44. Nxd6+ {[%clk 0:01:15]}  Kc6 {[%clk 0:01:04]} 45. Nxf7 {[%clk 0:01:15]}  Kd5 {[%clk 0:01:03]} 46. Ng5 {[%clk 0:01:15]}  h6 {[%clk 0:01:02]} 47. Nf7 {[%clk 0:01:15]}  h5 {[%clk 0:01:01]} 48. h4 {[%clk 0:01:15]}  e5 {[%clk 0:00:59]} 49. Ng5 {[%clk 0:01:15]} 1-0


[Site "https://www.chess.com"]

[Event "Titled Tuesday Blitz August 31 2021"]
[White "Krysa, Leandro"]
[Black "Demidov, Mikhail"]
[WhiteFideId "116807"]
[BlackFideId "4197143"]
[WhiteElo "2617"]
[BlackElo "2800"]
[Result "1/2-1/2"]
[Round "03"]
[TimeControl "180+1"]
[Date "2021.08.31"]
[WhiteClock "0:00:05"]
[BlackClock "0:00:09"]

1. e4 {[%clk 0:03:00]}  Nf6 {[%clk 0:02:59]} 2. e5 {[%clk 0:03:00]}  Nd5 {[%clk 0:02:59]} 3. d4 {[%clk 0:03:00]}  d6 {[%clk 0:02:58]} 4. c4 {[%clk 0:03:01]}  Nb6 {[%clk 0:02:58]} 5. f4 {[%clk 0:03:01]}  g6 {[%clk 0:02:58]} 6. Be3 {[%clk 0:02:58]}  Bg7 {[%clk 0:02:57]} 7. Nc3 {[%clk 0:02:58]}  O-O {[%clk 0:02:56]} 8. c5 {[%clk 0:02:52]}  N6d7 {[%clk 0:02:53]} 9. Nf3 {[%clk 0:02:47]}  b6 {[%clk 0:02:50]} 10. b4 {[%clk 0:02:31]}  a5 {[%clk 0:02:46]} 11. a3 {[%clk 0:02:30]}  axb4 {[%clk 0:02:40]} 12. axb4 {[%clk 0:02:30]}  Rxa1 {[%clk 0:02:40]} 13. Qxa1 {[%clk 0:02:31]}  bxc5 {[%clk 0:02:40]} 14. bxc5 {[%clk 0:02:29]}  Bb7 {[%clk 0:02:39]} 15. Be2 {[%clk 0:02:24]}  Nc6 {[%clk 0:02:21]} 16. O-O {[%clk 0:02:12]}  dxc5 {[%clk 0:02:13]} 17. dxc5 {[%clk 0:02:07]}  e6 {[%clk 0:01:57]} 18. Rb1 {[%clk 0:01:54]}  Ba8 {[%clk 0:01:56]} 19. Qa6 {[%clk 0:01:46]}  Ne7 {[%clk 0:01:46]} 20. Rd1 {[%clk 0:01:27]}  Nd5 {[%clk 0:01:45]} 21. Nxd5 {[%clk 0:01:20]}  Bxd5 {[%clk 0:01:44]} 22. h3 {[%clk 0:01:05]}  Qa8 {[%clk 0:01:39]} 23. Qxa8 {[%clk 0:00:55]}  Rxa8 {[%clk 0:01:39]} 24. Bb5 {[%clk 0:00:56]}  c6 {[%clk 0:01:25]} 25. Rxd5 {[%clk 0:00:56]}  exd5 {[%clk 0:01:15]} 26. Bxc6 {[%clk 0:00:56]}  Rd8 {[%clk 0:01:06]} 27. Bb7 {[%clk 0:00:47]}  Nxc5 {[%clk 0:00:54]} 28. Bxc5 {[%clk 0:00:46]}  Bf8 {[%clk 0:00:53]} 29. Bxf8 {[%clk 0:00:45]}  Kxf8 {[%clk 0:00:54]} 30. Kf2 {[%clk 0:00:44]}  d4 {[%clk 0:00:53]} 31. Be4 {[%clk 0:00:42]}  Ke7 {[%clk 0:00:52]} 32. Ke2 {[%clk 0:00:42]}  f6 {[%clk 0:00:51]} 33. exf6+ {[%clk 0:00:40]}  Kxf6 {[%clk 0:00:52]} 34. Kd3 {[%clk 0:00:41]}  Rb8 {[%clk 0:00:50]} 35. Nxd4 {[%clk 0:00:39]}  Rb2 {[%clk 0:00:50]} 36. Ke3 {[%clk 0:00:36]}  Ra2 {[%clk 0:00:47]} 37. Nf3 {[%clk 0:00:35]}  Ra3+ {[%clk 0:00:46]} 38. Bd3 {[%clk 0:00:34]}  Ra2 {[%clk 0:00:45]} 39. g4 {[%clk 0:00:34]}  Ra3 {[%clk 0:00:44]} 40. g5+ {[%clk 0:00:34]}  Kg7 {[%clk 0:00:44]} 41. Nd4 {[%clk 0:00:31]}  Ra1 {[%clk 0:00:36]} 42. Bc4 {[%clk 0:00:21]}  Rh1 {[%clk 0:00:33]} 43. Be6 {[%clk 0:00:21]}  Kf8 {[%clk 0:00:29]} 44. Bg4 {[%clk 0:00:20]}  Kg7 {[%clk 0:00:28]} 45. f5 {[%clk 0:00:20]}  gxf5 {[%clk 0:00:27]} 46. Bxf5 {[%clk 0:00:19]}  Rh2 {[%clk 0:00:23]} 47. Nf3 {[%clk 0:00:18]}  Ra2 {[%clk 0:00:21]} 48. Kf4 {[%clk 0:00:18]}  Ra4+ {[%clk 0:00:20]} 49. Kg3 {[%clk 0:00:18]}  Ra5 {[%clk 0:00:20]} 50. Be4 {[%clk 0:00:15]}  Ra4 {[%clk 0:00:20]} 51. Bd3 {[%clk 0:00:14]}  Ra3 {[%clk 0:00:20]} 52. Bc4 {[%clk 0:00:14]}  Ra4 {[%clk 0:00:19]} 53. Be6 {[%clk 0:00:14]}  Ra3 {[%clk 0:00:19]} 54. Bg4 {[%clk 0:00:14]}  Ra4 {[%clk 0:00:19]} 55. h4 {[%clk 0:00:14]}  Rb4 {[%clk 0:00:19]} 56. Ne5 {[%clk 0:00:10]}  Rb3+ {[%clk 0:00:17]} 57. Kf4 {[%clk 0:00:10]}  Rb4+ {[%clk 0:00:17]} 58. Kf5 {[%clk 0:00:11]}  Rb5 {[%clk 0:00:17]} 59. h5 {[%clk 0:00:08]}  h6 {[%clk 0:00:16]} 60. g6 {[%clk 0:00:08]}  Ra5 {[%clk 0:00:16]} 61. Bf3 {[%clk 0:00:08]}  Rb5 {[%clk 0:00:15]} 62. Be4 {[%clk 0:00:08]}  Ra5 {[%clk 0:00:15]} 63. Ke6 {[%clk 0:00:07]}  Ra6+ {[%clk 0:00:15]} 64. Kf5 {[%clk 0:00:07]}  Ra5 {[%clk 0:00:15]} 65. Kf4 {[%clk 0:00:07]}  Rb5 {[%clk 0:00:14]} 66. Nf3 {[%clk 0:00:08]}  Rxh5 {[%clk 0:00:13]} 67. Nd4 {[%clk 0:00:06]}  Kf6 {[%clk 0:00:12]} 68. Nf3 {[%clk 0:00:03]}  Ra5 {[%clk 0:00:11]} 69. Kg4 {[%clk 0:00:03]}  Ra4 {[%clk 0:00:10]} 70. Kf4 {[%clk 0:00:03]}  h5 {[%clk 0:00:10]} 71. Ke3 {[%clk 0:00:03]}  Rxe4+ {[%clk 0:00:08]} 72. Kxe4 {[%clk 0:00:03]}  Kxg6 {[%clk 0:00:09]} 73. Kf4 {[%clk 0:00:04]}  h4 {[%clk 0:00:09]} 74. Nxh4+ {[%clk 0:00:05]} 1/2-1/2


[Site "https://www.chess.com"]

[Event "Titled Tuesday Blitz August 31 2021"]
[White "Liyanage, Ranindu Dilshan"]
[Black "Kamsky, Gata"]
[WhiteFideId "9915834"]
[BlackFideId "2000024"]
[WhiteElo "1839"]
[BlackElo "2644"]
[Result "0-1"]
[Round "03"]
[TimeControl "180+1"]
[Date "2021.08.31"]
[WhiteClock "0:00:02"]
[BlackClock "0:00:14"]

1. e4 {[%clk 0:03:00]}  e5 {[%clk 0:02:56]} 2. Nf3 {[%clk 0:02:59]}  Nc6 {[%clk 0:02:56]} 3. d4 {[%clk 0:03:00]}  exd4 {[%clk 0:02:55]} 4. Nxd4 {[%clk 0:03:01]}  Bc5 {[%clk 0:02:55]} 5. Nb3 {[%clk 0:03:00]}  Bb6 {[%clk 0:02:54]} 6. Nc3 {[%clk 0:02:57]}  Nge7 {[%clk 0:02:54]} 7. Qe2 {[%clk 0:02:49]}  O-O {[%clk 0:02:52]} 8. Bg5 {[%clk 0:02:48]}  f6 {[%clk 0:02:51]} 9. Bh4 {[%clk 0:02:33]}  a5 {[%clk 0:02:46]} 10. a4 {[%clk 0:02:29]}  d6 {[%clk 0:02:39]} 11. O-O-O {[%clk 0:02:03]}  Qe8 {[%clk 0:02:26]} 12. f4 {[%clk 0:01:58]}  Be6 {[%clk 0:02:18]} 13. Nd5 {[%clk 0:01:37]}  Bxd5 {[%clk 0:02:05]} 14. exd5 {[%clk 0:01:38]}  Nb4 {[%clk 0:01:57]} 15. Qe6+ {[%clk 0:01:30]}  Kh8 {[%clk 0:01:22]} 16. Bb5 {[%clk 0:01:15]}  c6 {[%clk 0:01:11]} 17. dxc6 {[%clk 0:01:09]}  bxc6 {[%clk 0:01:11]} 18. Bc4 {[%clk 0:00:49]}  d5 {[%clk 0:01:10]} 19. Bd3 {[%clk 0:00:48]}  Nxd3+ {[%clk 0:00:42]} 20. Rxd3 {[%clk 0:00:49]}  Ng6 {[%clk 0:00:42]} 21. Qg4 {[%clk 0:00:48]}  Be3+ {[%clk 0:00:39]} 22. Kb1 {[%clk 0:00:46]}  Bxf4 {[%clk 0:00:37]} 23. Re1 {[%clk 0:00:46]}  Be5 {[%clk 0:00:35]} 24. Rh3 {[%clk 0:00:41]}  Qc8 {[%clk 0:00:30]} 25. Qd1 {[%clk 0:00:27]}  c5 {[%clk 0:00:30]} 26. Qxd5 {[%clk 0:00:22]}  Nf4 {[%clk 0:00:29]} 27. Qxc5 {[%clk 0:00:19]}  Nxh3 {[%clk 0:00:29]} 28. gxh3 {[%clk 0:00:20]}  Qxh3 {[%clk 0:00:27]} 29. Bg3 {[%clk 0:00:15]}  Rfc8 {[%clk 0:00:26]} 30. Qd5 {[%clk 0:00:10]}  Bxg3 {[%clk 0:00:25]} 31. hxg3 {[%clk 0:00:11]}  Qxg3 {[%clk 0:00:24]} 32. Rh1 {[%clk 0:00:11]}  Qg6 {[%clk 0:00:23]} 33. Nd4 {[%clk 0:00:12]}  Rd8 {[%clk 0:00:21]} 34. Qc4 {[%clk 0:00:10]}  Qe4 {[%clk 0:00:21]} 35. Rd1 {[%clk 0:00:03]}  Rac8 {[%clk 0:00:21]} 36. Qa6 {[%clk 0:00:02]}  Rxc2 {[%clk 0:00:16]} 37. Nxc2 {[%clk 0:00:01]}  Rxd1+ {[%clk 0:00:16]} 38. Ka2 {[%clk 0:00:02]}  Rd8 {[%clk 0:00:14]} 39. Qb6 {[%clk 0:00:02]}  Qc4+ {[%clk 0:00:14]} 40. b3 {[%clk 0:00:02]}  Qxc2+ {[%clk 0:00:14]} 0-1


[Site "https://www.chess.com"]

[Event "Titled Tuesday Blitz August 31 2021"]
[White "Ljukin, Sergei"]
[Black "Holt, Conrad"]
[WhiteFideId "14102200"]
[BlackFideId "2034387"]
[WhiteElo "2309"]
[BlackElo "2586"]
[Result "0-1"]
[Round "03"]
[TimeControl "180+1"]
[Date "2021.08.31"]
[WhiteClock "0:00:10"]
[BlackClock "0:01:07"]

1. e4 {[%clk 0:03:00]}  e6 {[%clk 0:02:58]} 2. d4 {[%clk 0:03:00]}  d5 {[%clk 0:02:58]} 3. Nc3 {[%clk 0:03:00]}  Nf6 {[%clk 0:02:56]} 4. Bg5 {[%clk 0:03:00]}  dxe4 {[%clk 0:02:56]} 5. Nxe4 {[%clk 0:02:59]}  Be7 {[%clk 0:02:57]} 6. Bxf6 {[%clk 0:03:00]}  Bxf6 {[%clk 0:02:57]} 7. Nf3 {[%clk 0:03:00]}  Nd7 {[%clk 0:02:58]} 8. Bc4 {[%clk 0:02:59]}  a6 {[%clk 0:02:57]} 9. Qe2 {[%clk 0:02:59]}  b5 {[%clk 0:02:56]} 10. Bb3 {[%clk 0:02:59]}  O-O {[%clk 0:02:56]} 11. O-O-O {[%clk 0:02:59]}  Bb7 {[%clk 0:02:56]} 12. d5 {[%clk 0:03:00]}  exd5 {[%clk 0:02:55]} 13. Bxd5 {[%clk 0:03:00]}  c6 {[%clk 0:02:56]} 14. Bb3 {[%clk 0:02:37]}  Qc7 {[%clk 0:02:55]} 15. Rd6 {[%clk 0:01:37]}  Be7 {[%clk 0:02:46]} 16. Rd2 {[%clk 0:01:31]}  c5 {[%clk 0:02:43]} 17. Bd5 {[%clk 0:01:28]}  Bxd5 {[%clk 0:02:41]} 18. Rxd5 {[%clk 0:01:27]}  Nb6 {[%clk 0:02:41]} 19. Rd2 {[%clk 0:01:26]}  Rfe8 {[%clk 0:02:38]} 20. Re1 {[%clk 0:00:57]}  Nc4 {[%clk 0:02:24]} 21. Rd5 {[%clk 0:00:53]}  Qc6 {[%clk 0:02:10]} 22. Qd3 {[%clk 0:00:51]}  Qg6 {[%clk 0:01:31]} 23. Ng3 {[%clk 0:00:39]}  Bg5+ {[%clk 0:01:23]} 24. Kb1 {[%clk 0:00:22]}  Nd2+ {[%clk 0:01:20]} 25. Ka1 {[%clk 0:00:15]}  Nxf3 {[%clk 0:01:20]} 26. Rxe8+ {[%clk 0:00:13]}  Rxe8 {[%clk 0:01:19]} 27. Qxf3 {[%clk 0:00:13]}  Qxc2 {[%clk 0:01:17]} 28. Rd1 {[%clk 0:00:10]}  Bf6 {[%clk 0:01:08]} 29. Rb1 {[%clk 0:00:10]}  Bxb2+ {[%clk 0:01:07]} 0-1


[Site "https://www.chess.com"]

[Event "Titled Tuesday Blitz August 31 2021"]
[White "Mikhailovsky, Vladimir"]
[Black "Maghsoodloo, Parham"]
[WhiteFideId "34105414"]
[BlackFideId "12539929"]
[WhiteElo "2315"]
[BlackElo "2601"]
[Result "1-0"]
[Round "03"]
[TimeControl "180+1"]
[Date "2021.08.31"]
[WhiteClock "0:00:04"]
[BlackClock "0:00:06"]

1. Nf3 {[%clk 0:03:00]}  d5 {[%clk 0:02:31]} 2. b3 {[%clk 0:02:58]}  Nf6 {[%clk 0:02:28]} 3. Bb2 {[%clk 0:02:57]}  g6 {[%clk 0:02:28]} 4. g3 {[%clk 0:02:56]}  Bg7 {[%clk 0:02:28]} 5. Bg2 {[%clk 0:02:57]}  c5 {[%clk 0:02:28]} 6. O-O {[%clk 0:02:57]}  Nc6 {[%clk 0:01:53]} 7. d4 {[%clk 0:02:54]}  Ne4 {[%clk 0:01:52]} 8. e3 {[%clk 0:02:52]}  O-O {[%clk 0:01:47]} 9. Nbd2 {[%clk 0:02:51]}  Qa5 {[%clk 0:01:39]} 10. Nxe4 {[%clk 0:02:21]}  dxe4 {[%clk 0:01:39]} 11. Ne5 {[%clk 0:02:22]}  f5 {[%clk 0:01:24]} 12. Qe2 {[%clk 0:02:15]}  Be6 {[%clk 0:01:04]} 13. Nxc6 {[%clk 0:01:58]}  bxc6 {[%clk 0:01:04]} 14. c4 {[%clk 0:01:52]}  Rfd8 {[%clk 0:01:04]} 15. Rfd1 {[%clk 0:01:52]}  Rd6 {[%clk 0:00:48]} 16. dxc5 {[%clk 0:01:45]}  Qxc5 {[%clk 0:00:47]} 17. Bxg7 {[%clk 0:01:45]}  Kxg7 {[%clk 0:00:46]} 18. Qb2+ {[%clk 0:01:38]}  Kf7 {[%clk 0:00:46]} 19. Rd4 {[%clk 0:01:33]}  Rad8 {[%clk 0:00:44]} 20. Rad1 {[%clk 0:01:33]}  a5 {[%clk 0:00:44]} 21. Qc3 {[%clk 0:01:32]}  Qb4 {[%clk 0:00:42]} 22. Qc2 {[%clk 0:00:54]}  c5 {[%clk 0:00:36]} 23. Rxd6 {[%clk 0:00:51]}  Rxd6 {[%clk 0:00:36]} 24. Rxd6 {[%clk 0:00:50]}  exd6 {[%clk 0:00:37]} 25. a4 {[%clk 0:00:47]}  d5 {[%clk 0:00:33]} 26. cxd5 {[%clk 0:00:33]}  Bxd5 {[%clk 0:00:34]} 27. Bf1 {[%clk 0:00:33]}  Bxb3 {[%clk 0:00:28]} 28. Qb2 {[%clk 0:00:34]}  Be6 {[%clk 0:00:11]} 29. Qe5 {[%clk 0:00:33]}  c4 {[%clk 0:00:10]} 30. Qc7+ {[%clk 0:00:32]}  Kf6 {[%clk 0:00:09]} 31. Qd8+ {[%clk 0:00:32]}  Kg7 {[%clk 0:00:08]} 32. Qc7+ {[%clk 0:00:28]}  Bf7 {[%clk 0:00:08]} 33. h4 {[%clk 0:00:19]}  h6 {[%clk 0:00:07]} 34. h5 {[%clk 0:00:18]}  Qxa4 {[%clk 0:00:05]} 35. Qe5+ {[%clk 0:00:16]}  Kh7 {[%clk 0:00:05]} 36. hxg6+ {[%clk 0:00:13]}  Kxg6 {[%clk 0:00:05]} 37. Qd6+ {[%clk 0:00:13]}  Kh7 {[%clk 0:00:05]} 38. Qf6 {[%clk 0:00:13]}  Qd7 {[%clk 0:00:03]} 39. g4 {[%clk 0:00:09]}  fxg4 {[%clk 0:00:03]} 40. Qe5 {[%clk 0:00:08]}  Bg6 {[%clk 0:00:03]} 41. Qxa5 {[%clk 0:00:07]}  Qf7 {[%clk 0:00:02]} 42. Qe5 {[%clk 0:00:06]}  h5 {[%clk 0:00:02]} 43. Qc5 {[%clk 0:00:06]}  Qg7 {[%clk 0:00:03]} 44. Bxc4 {[%clk 0:00:06]}  Qf6 {[%clk 0:00:03]} 45. Qc7+ {[%clk 0:00:06]}  Kh6 {[%clk 0:00:03]} 46. Kg2 {[%clk 0:00:05]}  h4 {[%clk 0:00:04]} 47. Kg1 {[%clk 0:00:06]}  Kg5 {[%clk 0:00:04]} 48. Qc5+ {[%clk 0:00:05]}  Kh6 {[%clk 0:00:04]} 49. Qc7 {[%clk 0:00:05]}  Bh5 {[%clk 0:00:04]} 50. Qd7 {[%clk 0:00:05]}  g3 {[%clk 0:00:04]} 51. fxg3 {[%clk 0:00:03]}  hxg3 {[%clk 0:00:05]} 52. Qd2 {[%clk 0:00:04]}  Bf3 {[%clk 0:00:04]} 53. Be2 {[%clk 0:00:02]}  Qa1+ {[%clk 0:00:04]} 54. Bf1 {[%clk 0:00:01]}  g2 {[%clk 0:00:04]} 55. Qd6+ {[%clk 0:00:01]}  Kg7 {[%clk 0:00:04]} 56. Qd7+ {[%clk 0:00:01]}  Kg6 {[%clk 0:00:04]} 57. Qd6+ {[%clk 0:00:02]}  Kf5 {[%clk 0:00:05]} 58. Qd7+ {[%clk 0:00:02]}  Kg5 {[%clk 0:00:05]} 59. Qd5+ {[%clk 0:00:02]}  Kh4 {[%clk 0:00:05]} 60. Qd8+ {[%clk 0:00:02]}  Kh3 {[%clk 0:00:05]} 61. Qd7+ {[%clk 0:00:02]}  Bg4 {[%clk 0:00:05]} 62. Qh7+ {[%clk 0:00:02]}  Kg3 {[%clk 0:00:06]} 63. Qh2+ {[%clk 0:00:03]}  Kf3 {[%clk 0:00:06]} 64. Qf4# {[%clk 0:00:04]} 1-0


[Site "https://www.chess.com"]

[Event "Titled Tuesday Blitz August 31 2021"]
[White "Murzin, Volodar"]
[Black "Vasli, Aref"]
[WhiteFideId "44155573"]
[BlackFideId "417521"]
[WhiteElo "2747"]
[BlackElo "2498"]
[Result "1-0"]
[Round "03"]
[TimeControl "180+1"]
[Date "2021.08.31"]
[WhiteClock "0:00:09"]
[BlackClock "0:00:11"]

1. e4 {[%clk 0:03:00]}  e5 {[%clk 0:02:59]} 2. Nf3 {[%clk 0:03:00]}  Nc6 {[%clk 0:02:59]} 3. Bb5 {[%clk 0:03:01]}  a6 {[%clk 0:02:59]} 4. Ba4 {[%clk 0:03:00]}  Nf6 {[%clk 0:02:59]} 5. O-O {[%clk 0:03:00]}  Be7 {[%clk 0:02:59]} 6. d3 {[%clk 0:02:57]}  b5 {[%clk 0:02:59]} 7. Bb3 {[%clk 0:02:57]}  d6 {[%clk 0:03:00]} 8. a3 {[%clk 0:02:57]}  O-O {[%clk 0:02:59]} 9. Nc3 {[%clk 0:02:57]}  Bb7 {[%clk 0:02:38]} 10. Nd5 {[%clk 0:02:41]}  Qd7 {[%clk 0:02:29]} 11. Nxe7+ {[%clk 0:02:29]}  Nxe7 {[%clk 0:02:28]} 12. Bg5 {[%clk 0:02:29]}  Ng6 {[%clk 0:02:20]} 13. Nd2 {[%clk 0:02:02]}  Ng4 {[%clk 0:01:48]} 14. h3 {[%clk 0:01:52]}  h6 {[%clk 0:01:48]} 15. Qxg4 {[%clk 0:01:48]}  Qxg4 {[%clk 0:01:46]} 16. hxg4 {[%clk 0:01:49]}  hxg5 {[%clk 0:01:46]} 17. Nf3 {[%clk 0:01:49]}  Bc8 {[%clk 0:01:45]} 18. Nxg5 {[%clk 0:01:43]}  Bxg4 {[%clk 0:01:45]} 19. g3 {[%clk 0:01:43]}  c5 {[%clk 0:01:26]} 20. a4 {[%clk 0:01:22]}  Be2 {[%clk 0:01:04]} 21. axb5 {[%clk 0:01:06]}  Bxf1 {[%clk 0:01:03]} 22. Kxf1 {[%clk 0:01:05]}  Ne7 {[%clk 0:00:57]} 23. bxa6 {[%clk 0:01:00]}  g6 {[%clk 0:00:54]} 24. Bc4 {[%clk 0:00:51]}  Kg7 {[%clk 0:00:54]} 25. c3 {[%clk 0:00:46]}  Ra7 {[%clk 0:00:54]} 26. b4 {[%clk 0:00:41]}  cxb4 {[%clk 0:00:52]} 27. cxb4 {[%clk 0:00:41]}  Nc8 {[%clk 0:00:50]} 28. Rc1 {[%clk 0:00:23]}  Nb6 {[%clk 0:00:48]} 29. Bb5 {[%clk 0:00:23]}  Rc8 {[%clk 0:00:45]} 30. Rxc8 {[%clk 0:00:22]}  Nxc8 {[%clk 0:00:45]} 31. Bc4 {[%clk 0:00:23]}  Nb6 {[%clk 0:00:44]} 32. b5 {[%clk 0:00:23]}  Kf6 {[%clk 0:00:41]} 33. f4 {[%clk 0:00:21]}  Rc7 {[%clk 0:00:31]} 34. Ke2 {[%clk 0:00:16]}  exf4 {[%clk 0:00:24]} 35. gxf4 {[%clk 0:00:16]}  Rd7 {[%clk 0:00:16]} 36. Ke3 {[%clk 0:00:13]}  d5 {[%clk 0:00:15]} 37. exd5 {[%clk 0:00:11]}  Kf5 {[%clk 0:00:14]} 38. Ne4 {[%clk 0:00:11]}  f6 {[%clk 0:00:13]} 39. d6 {[%clk 0:00:10]}  g5 {[%clk 0:00:12]} 40. fxg5 {[%clk 0:00:09]}  fxg5 {[%clk 0:00:12]} 41. Kd4 {[%clk 0:00:09]}  g4 {[%clk 0:00:13]} 42. Kc5 {[%clk 0:00:08]}  Nc8 {[%clk 0:00:12]} 43. b6 {[%clk 0:00:08]}  g3 {[%clk 0:00:11]} 44. Nxg3+ {[%clk 0:00:08]}  Ke5 {[%clk 0:00:11]} 45. b7 {[%clk 0:00:08]}  Nxd6 {[%clk 0:00:11]} 46. b8=Q {[%clk 0:00:09]} 1-0


[Site "https://www.chess.com"]